bitfinex/quotes_ETHUSD_20260113
["timestamp","ask_amount","ask_price","bid_price","bid_amount"]
[1768342860752,0.28001671,3319.5,3318.0,0.35913863]
[1768342860952,0.002,3320.5,3318.2,9.38402267]
[1768342861157,0.28018179,3320.4,3318.2,9.38402267]
[1768342861352,0.28018179,3320.3,3318.2,9.38402267]
[1768342861559,0.002,3320.5,3318.5,9.38402267]
[1768342861878,0.002,3320.7,3319.5,9.38402267]
[1768342862035,0.002,3320.7,3319.6,0.329]
[1768342862391,0.20199317,3321.4,3319.8,9.38402267]
[1768342862534,1e-08,3322.3,3320.9,4.873024]
[1768342862880,1e-08,3322.3,3321.1,18.41717432]
[1768342863190,1e-08,3322.3,3321.2,9.38402267]
[1768342863778,1e-08,3322.3,3321.3,0.33]
[1768342864434,1e-08,3322.3,3321.1,6.0221011]
[1768342864635,1e-08,3322.3,3321.2,0.33]
[1768342864869,1e-08,3322.3,3321.3,6.02173846]
[1768342865203,1e-08,3322.3,3321.3,9.03260769]
[1768342865335,1e-08,3322.3,3321.3,6.02173846]
[1768342865680,0.002,3323.6,3321.4,9.69646471]
[1768342865841,0.002,3323.6,3321.5,0.33]
[1768342866236,0.002,3323.6,3321.5,10.02646471]
[1768342866996,0.002,3323.6,3321.6,6.0211946]
[1768342867347,0.002,3323.6,3321.7,0.33]
[1768342867973,0.002,3323.6,3321.7,10.02646471]
[1768342868380,0.002,3325.3,3322.1,9.69646471]
[1768342868590,0.002,3325.3,3322.5,9.69646471]
[1768342868787,0.002,3325.3,3322.9,9.69646471]
[1768342868998,0.002,3325.3,3322.6,0.33]
[1768342868999,0.002,3325.3,3323.1,9.69646471]
[1768342869203,0.002,3325.3,3323.3,10.747434]
[1768342869358,0.002,3325.3,3323.2,9.69646471]
[1768342869567,0.002,3325.3,3323.3,0.33]
[1768342870107,0.002,3325.3,3323.5,9.69646471]
[1768342870310,0.002,3325.3,3323.6,0.33]
[1768342870604,0.002,3325.3,3323.8,11.83616571]
[1768342870760,0.003,3326.7,3323.8,9.69646471]
[1768342871091,0.003,3326.7,3323.9,21.73052107]
[1768342871256,0.003,3326.7,3324.0,9.69646471]
[1768342871706,0.003,3326.7,3324.9,9.69646471]
[1768342871856,0.003,3326.7,3325.0,9.69646471]
[1768342872216,0.003,3326.7,3325.1,0.33]
[1768342872393,0.003,3326.7,3325.2,0.33]
[1768342872576,0.003,3326.7,3325.3,0.33]
[1768342872903,0.003,3326.7,3325.4,0.33]
[1768342873072,0.003,3326.7,3323.9,3.00843255]
[1768342873272,9.08300731,3326.6,3323.4,9.69646471]
[1768342873496,9.08300731,3326.6,3323.4,12.70534972]
[1768342873800,9.08300731,3326.6,3322.0,3.01019588]
[1768342873801,9.08300731,3326.3,3323.5,0.33]
[1768342873998,9.08300731,3326.3,3321.7,3.01047798]
[1768342873999,9.08300731,3325.5,3323.2,0.33]
[1768342874184,9.08300731,3325.3,3323.2,0.33]
[1768342874387,0.33,3323.2,3321.8,3.01041603]
[1768342874589,0.33,3323.2,3321.6,9.69646471]
[1768342874764,0.33,3323.2,3321.9,0.33]
[1768342875202,0.33,3323.2,3322.0,3.01023479]
[1768342875901,0.33,3323.2,3321.9,3.34031596]
[1768342876087,0.33,3323.2,3322.0,0.03010234]
[1768342876268,0.33,3323.2,3321.9,6.35064137]
[1768342876913,0.33,3323.2,3322.0,9.96813078]
[1768342877124,0.003,3324.7,3322.2,9.96813078]
[1768342877399,0.003,3324.7,3323.0,9.96813078]
[1768342877600,0.003,3324.7,3323.2,9.96813078]
[1768342877826,6.01214452,3326.6,3323.4,9.96813078]
[1768342877983,6.01214452,3326.6,3323.5,0.33]
[1768342878491,0.002,3324.6,3323.5,0.33]
[1768342878714,0.003,3326.7,3323.8,9.96813078]
[1768342879025,0.003,3326.7,3324.0,9.96813078]
[1768342879189,0.003,3326.7,3324.2,9.02472774]
[1768342879391,0.003,3326.7,3324.3,0.03008152]
[1768342879814,0.003,3326.7,3324.2,6.01648516]
[1768342880124,0.003,3326.7,3324.3,0.03008152]
[1768342880324,0.003,3326.7,3324.2,6.01648516]
[1768342881026,0.003,3326.7,3324.3,0.03008152]
[1768342881323,0.003,3326.7,3324.4,0.331]
[1768342881988,0.003,3326.7,3324.5,0.331]
[1768342882898,0.003,3326.7,3324.6,0.33]
[1768342883232,0.003,3326.7,3324.7,0.0300779]
[1768342883403,9.6307202,3327.2,3324.8,0.33]
[1768342883722,12.63629355,3327.2,3324.8,0.33]
[1768342883926,15.6418669,3327.2,3324.9,0.33]
[1768342884127,15.6418669,3327.2,3325.0,0.02447001]
[1768342884327,15.6418669,3327.2,3324.9,0.33]
[1768342884627,9.6328678,3327.0,3324.0,9.96813078]
[1768342884931,9.84335393,3326.8,3322.5,2.675019]
[1768342885125,3.177,3326.5,3323.3,3.00897313]
[1768342885290,3.177,3326.5,3322.7,3.00955881]
[1768342885291,9.83922778,3326.2,3323.4,0.33]
[1768342885492,6.05008416,3326.4,3322.7,3.00955881]
[1768342885493,9.63905755,3326.0,3322.7,3.00955881]
[1768342885694,12.025012,3326.4,3322.7,3.00955881]
[1768342885695,9.83722608,3325.8,3322.8,0.33]
[1768342885921,3.00584372,3326.9,3322.8,0.33]
[1768342885922,9.84764934,3326.9,3323.0,9.96813078]
[1768342886102,3.177,3326.4,3322.8,3.384625]
[1768342886300,9.84335393,3326.2,3322.9,0.33]
[1768342886538,9.63497266,3326.0,3322.7,6.01915943]
[1768342886697,9.84127012,3325.8,3323.0,0.33]
[1768342887433,9.02065728,3325.7,3323.0,3.33932447]
[1768342887817,9.84764934,3327.0,3323.2,9.96813078]
[1768342887994,9.6307202,3326.7,3323.5,9.96813078]
[1768342888192,9.6307202,3326.7,3323.6,0.02449481]
[1768342888422,9.6307202,3326.7,3323.5,9.96813078]
[1768342888423,9.6307202,3326.7,3323.7,0.33]
[1768342889325,6.01232526,3326.5,3323.8,6.0172092]
[1768342889735,6.01232526,3326.5,3323.9,0.35449183]
[1768342890026,6.01232526,3326.5,3323.9,0.33]
[1768342890027,3.00616263,3326.5,3323.9,0.33]
[1768342890226,0.002,3326.4,3323.9,0.33]
[1768342891128,0.002,3326.4,3324.0,9.96813078]
[1768342891295,0.002,3326.4,3324.4,9.96813078]
[1768342891504,0.002,3326.4,3324.5,0.331]
[1768342891849,0.002,3326.4,3324.7,9.96813078]
[1768342892429,0.002,3326.4,3324.8,0.331]
[1768342892613,0.002,3326.4,3324.7,9.96813078]
[1768342892820,0.002,3326.7,3325.2,9.96813078]
[1768342893021,0.002,3328.1,3325.6,9.96813078]
[1768342893356,0.002,3328.1,3325.9,9.96813078]
[1768342893565,0.002,3328.1,3326.1,9.96813078]
[1768342894375,0.002,3328.1,3326.3,9.96813078]
[1768342894520,3.00337206,3329.6,3326.7,9.96813078]
[1768342894717,0.03753753,3330.0,3326.7,9.96813078]
[1768342894718,3.00328938,3329.7,3326.9,4.516151]
[1768342894914,3.00328938,3329.7,3325.9,9.97874159]
[1768342894915,3.20509506,3329.4,3325.9,9.97874159]
[1768342895141,0.27368589,3329.3,3326.1,9.0133]
[1768342895319,6.20865101,3329.4,3326.3,6.01268676]
[1768342895513,6.20865101,3329.4,3326.3,9.01903014]
[1768342895514,0.27360211,3329.3,3326.3,9.01903014]
[1768342895749,6.20865101,3329.4,3326.3,9.01903014]
[1768342895935,9.84339313,3329.2,3326.4,0.331]
[1768342896135,3.20509506,3329.4,3326.3,9.01903014]
[1768342896136,0.20153911,3329.4,3326.5,10.13874159]
[1768342896454,3.20515336,3329.4,3326.9,9.97874159]
[1768342896634,0.03754542,3329.3,3326.3,9.01903014]
[1768342896834,9.95520994,3329.3,3326.4,0.331]
[1768342897041,0.20153911,3329.4,3326.4,10.33417386]
[1768342897350,0.20153911,3329.4,3327.1,9.01686153]
[1768342897555,0.20153911,3329.4,3327.2,10.30974159]
[1768342897773,3.00264232,3330.4,3327.2,10.30974159]
[1768342898064,0.27337688,3330.3,3327.2,10.30974159]
[1768342898221,6.00528464,3330.4,3327.3,0.331]
[1768342898551,10.23275409,3330.3,3327.2,9.97874159]
[1768342898754,9.79504903,3330.2,3327.3,0.331]
[1768342898931,0.2731671,3330.1,3327.3,0.331]
[1768342899145,9.52621521,3329.9,3325.9,0.16]
[1768342899348,9.01009128,3329.6,3326.3,9.5023]
[1768342899533,10.25742568,3329.5,3326.4,0.331]
[1768342899865,12.01345504,3329.6,3326.1,6.01304467]
[1768342899866,9.53462479,3329.3,3326.1,6.01304467]
[1768342900070,9.94259451,3329.1,3325.6,3.00691678]
[1768342900275,9.53870448,3328.9,3325.7,0.331]
[1768342900476,9.93855561,3328.7,3326.0,3.00658226]
[1768342900773,0.37494185,3329.2,3326.1,0.331]
[1768342900774,9.542703,3328.5,3326.1,0.331]
[1768342900971,9.93459708,3328.3,3326.2,0.331]
[1768342901274,9.54662194,3328.1,3324.7,3.00771335]
[1768342901472,9.01469394,3327.9,3324.8,0.331]
[1768342901635,0.2731671,3327.8,3324.8,0.331]
[1768342901834,6.00690794,3329.5,3325.6,9.97874159]
[1768342902038,9.95958699,3329.0,3325.7,0.35544199]
[1768342902252,9.52188193,3328.8,3326.5,0.001]
[1768342902530,10.22814131,3328.7,3326.5,0.001]
[1768342902735,9.79914409,3328.6,3326.5,0.001]
[1768342902970,9.95091999,3328.4,3326.5,0.001]
[1768342903173,0.276,3328.9,3324.7,9.02337051]
[1768342903174,9.84094785,3328.3,3324.7,9.02337051]
[1768342903339,9.53461489,3327.9,3324.2,3.00822524]
[1768342903533,9.94161431,3327.7,3324.8,0.331]
[1768342903733,0.27293326,3327.6,3324.8,0.331]
[1768342903933,10.21861431,3327.7,3324.8,0.331]
[1768342904146,3.00473173,3328.1,3324.8,9.97874159]
[1768342904383,0.27309287,3328.0,3324.9,10.33420623]
[1768342904585,3.00473173,3328.1,3325.0,9.97874159]
[1768342904586,6.00946346,3328.1,3325.0,9.97874159]
[1768342904948,9.99713718,3328.0,3325.0,9.97874159]
[1768342905149,9.95957709,3328.0,3325.1,0.35546241]
[1768342905351,3.00489798,3327.9,3325.2,9.47726784]
[1768342905550,3.00489798,3327.9,3325.3,0.02446018]
[1768342905746,6.00979596,3327.9,3325.2,6.0146758]
[1768342905951,9.79215283,3327.8,3325.2,3.0073379]
[1768342906180,10.22644144,3327.7,3325.2,3.0073379]
[1768342906347,10.07349571,3327.6,3325.3,0.331]
[1768342906556,3.28189798,3327.9,3325.4,0.02446097]
[1768342906761,0.27151318,3327.8,3325.3,0.331]
[1768342907094,0.27151318,3327.7,3325.3,0.331]
[1768342907388,3.27669427,3327.6,3325.0,6.01503758]
[1768342907690,10.23109027,3327.5,3325.1,0.331]
[1768342907998,9.79241491,3327.4,3323.4,9.97874159]
[1768342908154,9.95519034,3327.2,3323.9,3.00843371]
[1768342908359,9.52524461,3327.0,3324.3,3.00814648]
[1768342908559,9.95089089,3326.8,3324.5,3.00794591]
[1768342908792,9.95089089,3326.8,3324.4,0.331]
[1768342908793,9.80101425,3326.7,3323.3,0.001]
[1768342909013,10.21819017,3326.6,3324.2,3.00815551]
[1768342909172,0.26869934,3326.5,3324.4,3.00798493]
[1768342909371,3.00634338,3326.3,3324.3,0.331]
[1768342909571,3.00616263,3326.5,3324.4,3.0080616]
[1768342909911,0.2686652,3326.4,3324.4,3.0080616]
[1768342910206,6.01234192,3326.5,3324.4,3.0080616]
[1768342910207,0.2686652,3326.3,3324.4,6.0161232]
[1768342910364,3.00616263,3326.5,3324.4,3.0080616]
[1768342910563,0.26864078,3326.4,3323.7,3.00865781]
[1768342910760,0.26864078,3326.3,3323.8,0.331]
[1768342910964,10.08031361,3326.2,3323.8,0.331]
[1768342911164,9.94254695,3326.0,3323.9,3.00845258]
[1768342911398,0.26864078,3325.9,3323.9,3.00845258]
[1768342911597,0.26864078,3325.9,3323.7,3.00868954]
[1768342911598,6.0134099,3325.9,3323.7,3.00860489]
[1768342911760,6.0134099,3325.9,3323.8,3.33957813]
[1768342912098,3.00670495,3325.9,3323.8,6.34818273]
[1768342912297,3.00670495,3325.9,3323.8,3.33957813]
[1768342912474,6.0134099,3325.9,3323.9,0.331]
[1768342912672,6.0134099,3325.9,3323.8,3.00859374]
[1768342912673,3.00670495,3325.9,3323.8,3.00859374]
[1768342912994,0.278,3325.8,3323.9,0.331]
[1768342913377,3.28470495,3325.9,3323.9,0.331]
[1768342913572,3.28470495,3325.9,3324.0,3.00842358]
[1768342913887,0.278,3325.8,3324.0,3.00842358]
[1768342914261,3.28470495,3325.9,3324.0,3.00842358]
[1768342914595,3.28470495,3325.9,3324.7,0.001]
[1768342914808,3.28470495,3325.9,3323.9,3.00849885]
[1768342914977,3.28470495,3325.9,3324.0,0.332]
[1768342915177,0.278,3325.9,3324.0,0.332]
[1768342915800,0.278,3325.9,3324.1,3.00833308]
[1768342916007,6.29143213,3325.9,3323.3,0.001]
[1768342916307,6.29143213,3325.9,3324.0,3.00840613]
[1768342916522,9.96405291,3326.8,3324.1,10.31074159]
[1768342916669,0.16,3327.6,3324.1,10.31074159]
[1768342916670,0.2683973,3326.7,3324.2,0.332]
[1768342916866,9.79547067,3327.4,3324.3,0.02448431]
[1768342917065,10.22797178,3327.3,3324.3,10.0032259]
[1768342917267,0.26839469,3327.2,3324.3,9.97874159]
[1768342917468,9.78929642,3327.2,3324.3,9.97874159]
[1768342917695,10.22358503,3327.1,3324.3,9.97874159]
[1768342917875,6.01160238,3326.9,3324.4,9.0241848]
[1768342918077,0.26839469,3326.8,3324.4,9.0241848]
[1768342918266,0.26839469,3326.8,3324.5,0.02448055]
[1768342918475,0.26839469,3326.8,3324.4,22.01098799]
[1768342918673,3.00580119,3326.9,3324.5,9.97874159]
[1768342919298,3.00580119,3326.9,3324.6,0.02447829]
[1768342919500,9.51647067,3328.7,3324.8,9.97874159]
[1768342919802,9.51647067,3328.7,3324.7,0.02447679]
[1768342919803,9.52090173,3327.9,3325.1,6.01485668]
[1768342919972,9.95519034,3327.7,3325.1,3.00742834]
[1768342920168,9.95519034,3327.7,3325.0,3.00749461]
[1768342920169,9.52524461,3327.5,3325.0,3.00750319]
[1768342920399,9.95089089,3327.3,3323.8,3.00855295]
[1768342920698,12.01923076,3328.0,3324.8,3.00768815]
[1768342920699,9.52950107,3327.1,3324.8,3.00768815]
[1768342921002,10.49421087,3327.0,3323.9,9.97874159]
[1768342921204,9.96405291,3327.7,3325.0,6.01503758]
[1768342921500,9.51647067,3327.4,3325.1,0.332]
[1768342921704,9.96405291,3328.7,3325.5,9.97874159]
[1768342921891,0.26851554,3328.6,3326.0,9.97874159]
[1768342922092,3.00366304,3329.3,3326.4,9.97874159]
[1768342922292,0.26840708,3329.1,3326.6,9.97874159]
[1768342922494,9.52090173,3328.9,3325.7,3.00688576]
[1768342922697,9.95519034,3328.7,3325.8,0.332]
[1768342922897,9.52524461,3328.5,3325.8,0.332]
[1768342923207,10.49829669,3328.4,3325.9,0.332]
[1768342923378,9.52950107,3328.2,3326.0,0.332]
[1768342923569,9.94667699,3328.0,3326.0,0.332]
[1768342923775,6.01015716,3327.7,3325.9,0.332]
[1768342924104,0.5484058,3327.6,3325.9,0.332]
[1768342924403,0.28,3327.6,3325.9,0.332]
[1768342924616,9.96405291,3328.5,3325.9,0.332]
[1768342924783,10.77305041,3332.5,3325.5,0.02445566]
[1768342924784,9.95957709,3328.3,3325.5,3.00705436]
[1768342924973,9.52090173,3328.1,3325.9,3.00669495]
[1768342925173,0.26851065,3328.0,3325.9,3.00669495]
[1768342925374,0.03756122,3327.9,3325.9,3.00669495]
[1768342925573,0.26851065,3327.8,3326.0,0.332]
[1768342925781,0.26851065,3327.8,3326.1,0.332]
[1768342926004,6.0083516,3328.7,3326.2,9.6392233]
[1768342926216,0.26863381,3328.6,3326.2,9.6392233]
[1768342926392,0.002,3327.7,3326.2,9.6392233]
[1768342926605,0.002,3327.7,3326.3,0.332]
[1768342926787,0.002,3327.7,3325.5,9.6392233]
[1768342927113,9.94859572,3327.7,3324.7,0.001]
[1768342927289,9.66659572,3327.5,3324.8,3.00766522]
[1768342927609,0.282,3327.7,3324.7,0.001]
[1768342927610,9.93551239,3327.4,3324.7,0.001]
[1768342927777,9.66659572,3327.2,3324.7,0.001]
[1768342928114,9.66659572,3327.0,3324.7,0.001]
[1768342928330,9.66659572,3326.8,3324.5,0.332]
[1768342928530,0.26891667,3326.7,3324.6,0.332]
[1768342929007,0.28,3326.6,3324.6,0.332]
[1768342929228,0.26891667,3326.5,3324.7,0.332]
[1768342929414,0.26891667,3326.5,3324.8,0.02447834]
[1768342929615,0.26891667,3326.5,3324.7,0.332]
[1768342929616,0.26891667,3326.5,3324.9,0.02447684]
[1768342929815,3.0059819,3326.7,3325.0,0.02447535]
[1768342930015,0.26946766,3326.6,3324.9,0.02447535]
[1768342930327,0.26955936,3326.5,3324.9,0.02447535]
[1768342930530,3.0059819,3326.7,3324.8,3.00769971]
[1768342930531,6.0119638,3326.7,3324.8,3.00769971]
[1768342930825,0.26956058,3326.6,3324.9,0.332]
[1768342931029,0.30713761,3326.5,3323.6,9.6392233]
[1768342931326,0.26956058,3326.4,3324.4,3.00803437]
[1768342931508,0.26956058,3326.3,3324.6,3.00781751]
[1768342931826,3.00652415,3326.1,3323.8,3.00855476]
[1768342932124,0.26956058,3326.0,3323.8,9.02576396]
[1768342932340,0.26956058,3326.0,3323.8,6.01715936]
[1768342932661,0.26956058,3326.0,3321.6,0.001]
[1768342932662,1.26903327,3323.5,3321.6,0.001]
[1768342932931,0.26956058,3323.4,3321.6,0.001]
[1768342933094,0.26956058,3323.3,3321.6,0.001]
[1768342933297,0.26956058,3323.3,3321.6,0.02555001]
[1768342933603,0.26956058,3323.2,3321.6,0.001]
[1768342933915,3.00932891,3323.0,3321.7,0.332]
[1768342934115,6.01865782,3323.0,3321.6,0.001]
[1768342934296,6.01865782,3323.0,3321.8,0.331]
[1768342934492,0.27092044,3322.9,3321.8,0.331]
[1768342934744,6.01865782,3323.0,3321.6,0.332]
[1768342934918,0.27092199,3322.9,3321.6,0.31390653]
[1768342935112,0.27092199,3322.8,3321.6,7.03e-05]
[1768342935423,6.01865782,3323.0,3321.6,7.03e-05]
[1768342935626,0.27053799,3322.9,3321.4,0.331]
[1768342935808,3.00932891,3323.0,3321.4,0.331]
[1768342936014,0.27053854,3322.9,3321.4,0.331]
[1768342936210,0.27050923,3322.8,3321.0,0.331]
[1768342936399,0.24102352,3323.0,3321.1,0.331]
[1768342936803,9.66659572,3323.1,3321.5,9.79691887]
[1768342937113,0.15523658,3326.0,3321.7,9.79691887]
[1768342937114,0.281,3325.5,3321.7,9.79691887]
[1768342937298,9.94103998,3326.1,3321.4,9.03233574]
[1768342937299,0.27012633,3325.4,3321.9,9.79691887]
[1768342937504,0.27012633,3325.3,3322.1,9.79691887]
[1768342937716,9.02038605,3325.8,3323.1,0.01509723]
[1768342938034,0.281,3326.0,3323.2,6.3492956]
[1768342938035,3.27701233,3325.7,3323.2,6.3492956]
[1768342938233,3.00691186,3325.7,3323.2,6.3492956]
[1768342938435,3.44095615,3325.9,3323.3,0.02450694]
[1768342938642,0.4341848,3325.9,3323.5,9.79691887]
[1768342938802,0.4341848,3325.9,3323.6,0.02450091]
[1768342939208,0.4341848,3325.9,3323.5,9.79691887]
[1768342939510,0.4341848,3325.9,3323.6,0.02450091]
[1768342939734,6.44763296,3325.9,3323.7,0.331]
[1768342939936,6.44763296,3325.9,3323.8,0.331]
[1768342940103,9.45435704,3325.9,3323.1,0.01509723]
[1768342940303,0.30760823,3325.8,3323.1,0.01509723]
[1768342940601,10.20611631,3325.7,3323.1,0.01509723]
[1768342940831,9.72126423,3325.6,3323.2,0.331]
[1768342941010,0.27002329,3325.5,3323.2,0.331]
[1768342941197,0.27002329,3325.5,3323.1,0.01509723]
[1768342941198,9.96883396,3325.4,3323.1,0.01509723]
[1768342941413,9.72606427,3325.3,3323.2,0.331]
[1768342941612,0.27002329,3325.2,3323.2,0.331]
[1768342941810,0.27002329,3325.2,3323.3,0.331]
[1768342942026,9.02228502,3325.1,3323.4,0.331]
[1768342942221,0.27002329,3325.0,3323.4,0.331]
[1768342942430,0.27002329,3325.0,3323.2,0.331]
[1768342942633,0.03759511,3324.9,3322.2,3.01002712]
[1768342942810,0.27002329,3324.8,3322.2,3.01002742]
[1768342943000,9.02228502,3325.1,3322.3,0.35452881]
[1768342943207,0.2699775,3325.0,3322.3,0.35452881]
[1768342943462,0.2699775,3324.9,3322.6,3.00967417]
[1768342943735,9.02065728,3325.7,3323.3,3.00904256]
[1768342943902,9.0211998,3325.5,3322.6,9.79691887]
[1768342944104,10.20600742,3325.4,3323.0,3.00927053]
[1768342944308,0.2699144,3325.3,3323.1,0.33]
[1768342944505,0.2699144,3325.2,3323.1,6.34846007]
[1768342944824,15.46047665,3325.5,3323.2,0.33]
[1768342945021,0.26987998,3325.4,3323.2,0.33]
[1768342945210,18.46754325,3325.5,3323.1,3.00922171]
[1768342945406,0.26985045,3325.4,3323.2,0.331]
[1768342945607,0.03759059,3325.3,3323.3,0.331]
[1768342945807,0.03759059,3325.3,3321.8,12.80728623]
[1768342946036,9.02228502,3325.1,3322.0,6.02046958]
[1768342946204,0.26985231,3325.0,3322.0,6.02046958]
[1768342946734,0.26985231,3325.0,3322.0,9.03070437]
[1768342947233,0.26985231,3325.0,3322.1,9.82144916]
[1768342947405,6.01485668,3325.1,3322.1,9.79691887]
[1768342947736,0.03759398,3325.0,3322.9,9.79691887]
[1768342947935,3.006396,3326.3,3323.1,9.02771508]
[1768342948118,0.26979571,3326.2,3323.2,9.82142273]
[1768342948317,0.26979571,3326.1,3323.3,0.331]
[1768342948503,0.26979571,3326.0,3323.3,0.331]
[1768342948843,12.195759,3326.4,3323.4,9.79691887]
[1768342948844,9.018759,3326.4,3323.4,9.79691887]
[1768342949137,0.26981502,3326.3,3323.6,9.79691887]
[1768342949300,3.006253,3326.4,3323.8,9.79691887]
[1768342949507,6.012506,3326.4,3323.8,9.79691887]
[1768342949706,6.012506,3326.4,3323.9,0.331]
[1768342949906,6.012506,3326.4,3324.0,0.331]
[1768342950107,10.20594385,3326.3,3324.0,0.331]
[1768342950307,0.26985083,3326.2,3324.0,0.331]
[1768342950536,12.89809177,3326.2,3324.1,0.331]
[1768342950707,0.002,3325.6,3324.1,0.331]
[1768342951447,0.33,3324.2,3322.7,3.00953758]
[1768342951737,0.33,3324.2,3322.8,0.33]
[1768342952041,0.002,3325.6,3323.0,15.81557669]
[1768342952535,0.002,3325.6,3323.1,0.331]
[1768342952736,0.002,3325.6,3323.1,9.79691887]
[1768342952938,0.002,3325.6,3323.2,0.331]
[1768342953310,0.002,3325.6,3323.3,10.12791887]
[1768342953311,0.27048521,3325.5,3323.3,10.12791887]
[1768342953637,0.002,3325.6,3323.5,9.79691887]
[1768342953840,0.0395872,3325.6,3323.5,9.79691887]
[1768342954147,6.28462111,3325.5,3322.8,6.01896119]
[1768342954312,0.27048791,3325.4,3322.9,0.331]
[1768342954513,0.27048791,3325.3,3322.9,0.331]
[1768342954734,0.27048791,3325.2,3322.9,0.331]
[1768342955012,0.27048791,3325.1,3323.0,0.331]
[1768342955379,0.26772575,3325.0,3323.1,0.02451451]
[1768342955642,6.0141332,3325.5,3323.2,0.02451378]
[1768342955825,0.26772215,3325.4,3323.3,0.331]
[1768342956151,0.26772215,3325.3,3323.4,9.05140788]
[1768342956479,0.002,3325.6,3323.4,9.05140788]
[1768342956480,0.002,3325.6,3323.4,9.02690016]
[1768342956747,0.268063,3325.5,3323.4,9.02690016]
[1768342956913,0.002,3325.6,3323.4,9.02690016]
[1768342957116,0.2680599,3325.5,3323.4,9.02690016]
[1768342957319,3.00898119,3325.6,3323.4,9.02690016]
[1768342957519,0.26820439,3325.5,3323.4,9.02690016]
[1768342957714,3.00899907,3325.6,3323.4,9.02690016]
[1768342957911,0.26820428,3325.5,3323.5,9.02503865]
[1768342958114,0.002,3325.6,3323.7,9.02503865]
[1768342958311,0.002,3325.6,3323.8,0.331]
[1768342959273,0.002,3325.6,3323.9,9.02554227]
[1768342959847,0.002,3325.6,3324.0,0.331]
[1768342960044,0.002,3325.6,3323.9,9.02554227]
[1768342960248,0.002,3325.6,3324.1,0.331]
[1768342960570,0.002,3325.6,3323.9,9.02554227]
[1768342960742,0.002,3325.6,3324.2,0.331]
[1768342961136,0.002,3325.6,3323.5,9.02503865]
[1768342961336,0.002,3325.6,3323.6,0.332]
[1768342961549,0.26833594,3325.5,3323.7,0.332]
[1768342961870,0.26833641,3325.4,3323.7,0.332]
[1768342962038,0.002,3325.6,3323.7,0.332]
[1768342962365,0.2683375,3325.5,3323.8,0.332]
[1768342962536,0.33199999,3323.8,3323.1,3.00923836]
[1768342962736,0.33199999,3323.8,3323.3,0.001]
[1768342963472,0.33199999,3323.8,3322.5,3.0097796]
[1768342963639,0.33199999,3323.8,3322.6,0.331]
[1768342963841,3.27721977,3323.7,3321.1,3.01100339]
[1768342964139,0.26852465,3323.6,3321.5,0.331]
[1768342964462,0.26852465,3323.6,3321.6,0.35554848]
[1768342964640,0.26852465,3323.6,3321.8,3.01034623]
[1768342964835,0.26852465,3323.6,3321.9,0.02454397]
[1768342965037,0.26852465,3323.6,3322.0,3.01016455]
[1768342965275,0.26852465,3323.6,3322.1,3.03468241]
[1768342965575,0.26852465,3323.6,3321.9,3.01025237]
[1768342965576,3.27731724,3323.6,3321.9,3.01025237]
[1768342965782,0.26852465,3323.5,3322.0,0.331]
[1768342966069,0.26852465,3323.5,3322.0,3.34122582]
[1768342966266,0.26852465,3323.5,3322.0,0.331]
[1768342966766,9.95502609,3323.4,3322.0,0.331]
[1768342966943,0.26852465,3323.3,3322.0,0.331]
[1768342967146,0.26852465,3323.3,3322.0,3.34121831]
[1768342967760,0.26852465,3323.2,3322.0,3.34121831]
[1768342967970,3.00879259,3323.6,3322.0,3.34121831]
[1768342968171,3.00879259,3323.6,3321.4,3.01172343]
[1768342968172,0.26892907,3323.5,3322.1,0.332]
[1768342968465,0.26892907,3323.4,3322.1,0.332]
[1768342968665,3.00879259,3323.6,3322.1,0.332]
[1768342968666,0.26892907,3323.3,3322.1,0.332]
[1768342968865,0.26892907,3323.2,3322.1,0.332]
[1768342969072,3.00879259,3323.6,3322.1,0.332]
[1768342969369,3.27775928,3323.5,3321.9,3.01031374]
[1768342969551,0.26883363,3323.4,3322.2,0.332]
[1768342969753,0.26883363,3323.3,3322.2,0.332]
[1768342969940,0.26883363,3323.2,3322.3,0.332]
[1768342970136,6.0178513,3323.5,3322.4,1e-08]
[1768342970344,0.26880817,3323.4,3321.7,9.02503865]
[1768342970582,9.0220137,3325.2,3322.3,9.02503865]
[1768342970880,10.09173054,3325.1,3322.4,0.332]
[1768342971040,10.22546325,3325.0,3322.4,0.332]
[1768342971241,3.00769971,3324.8,3322.5,6.01956358]
[1768342971447,10.22412074,3324.7,3322.5,3.00978179]
[1768342971764,10.09436004,3324.6,3322.4,3.34186266]
[1768342971961,0.26869037,3324.5,3322.4,6.35173504]
[1768342972674,0.26869037,3324.5,3322.5,9.04956675]
[1768342972896,0.26869037,3324.4,3322.5,9.02503865]
[1768342973169,0.26554644,3324.3,3322.5,9.02503865]
[1768342973382,9.96010516,3325.3,3322.6,9.0290736]
[1768342973565,10.08857014,3325.2,3322.6,12.0387648]
[1768342973775,9.95675433,3325.0,3322.7,0.02451975]
[1768342974064,9.95675433,3325.0,3322.4,0.332]
[1768342974065,0.26554852,3324.9,3322.5,0.02452052]
[1768342974468,0.26554852,3324.9,3322.5,9.04955917]
[1768342974797,0.26554852,3324.8,3322.5,9.02503865]
[1768342975096,0.002,3323.1,3322.6,0.332]
[1768342975298,0.002,3325.3,3322.7,9.04957443]
[1768342975462,0.26553278,3325.2,3322.8,0.02451749]
[1768342975661,0.26553278,3325.1,3322.7,9.02503865]
[1768342975889,0.26553278,3325.0,3322.8,0.332]
[1768342976097,0.26553278,3324.9,3322.9,0.02451828]
[1768342976289,0.26553278,3324.8,3323.0,0.332]
[1768342976473,9.82502162,3325.3,3323.1,0.02451902]
[1768342976682,9.95675433,3325.1,3323.1,0.02451902]
[1768342976987,0.26555456,3325.0,3323.1,0.02451902]
[1768342977186,0.26555456,3324.9,3323.1,0.02451902]
[1768342977382,0.26556135,3324.8,3323.1,0.02451902]
[1768342977718,9.95675433,3325.1,3323.1,0.02451902]
[1768342977862,0.26556098,3325.0,3323.1,0.02451902]
[1768342978061,9.95675433,3325.1,3323.1,0.02451902]
[1768342978062,0.26556098,3324.9,3323.1,0.02451902]
[1768342978263,0.26556098,3324.8,3323.1,0.02451902]
[1768342978563,0.002,3325.3,3323.1,0.02451902]